fUST/lending_fUST_20250124
["ID","MTS","AMOUNT","RATE_DAILY","PERIOD"]
[350168765,1737666645611,-500.0,0.00021622,2]
[350168767,1737666645620,-335.49448435,0.00021622,2]
[350168769,1737666645630,-500.0,0.00021622,2]
[350168771,1737666645642,-500.0,0.00021622,2]
[350168773,1737666645652,-317.11500129,0.00021622,2]
[350168775,1737666645661,-150.0,0.00021623,2]
[350168777,1737666645672,-2057.0,0.00021623,2]
[350168779,1737666645682,-536.0,0.00021623,2]
[350168781,1737666645691,-2305.0,0.00021623,2]
[350168783,1737666645700,-510.05,0.00021643,3]
[350168785,1737666645710,-352.5475766,0.00021693,3]
[350168787,1737666645719,-510.05,0.0002178,3]
[350168789,1737666645729,-264.69513382,0.00021815,2]
[350168790,1737666645738,-352.5475766,0.00021831,3]
[350168792,1737666645747,-510.05,0.00021917,3]
[350168794,1737666645756,-352.5475766,0.00021969,3]
[350168796,1737666645767,-156.0,0.00022,2]
[350168797,1737666645775,-510.05,0.00022054,3]
[350168799,1737666645785,-706.5297228,0.00022055,2]
[350168800,1737666645794,-352.5475766,0.00022107,3]
[350168801,1737666645803,-440.294,0.0002214,2]
[350168802,1737666645813,-510.05,0.00022191,3]
[350168803,1737666645822,-156.0,0.00022192,2]
[350168804,1737666645831,-352.5475766,0.00022245,3]
[350168806,1737666645841,-510.09267527,0.00022328,3]
[350168808,1737666645850,-352.5475766,0.00022383,3]
[350168809,1737666645860,-1200.0,0.00022472,2]
[350168811,1737666645869,-481.26121334,0.00022491,2]
[350168813,1737666645879,-264.69513382,0.00022499,2]
[350168815,1737666645890,-352.5475766,0.00022521,3]
[350168816,1737666645899,-352.5475766,0.00022659,3]
[350168818,1737666645909,-153.0,0.00022693,2]
[350168820,1737666645918,-153.0,0.00022693,2]
[350168822,1737666645927,-153.0,0.00022693,2]
[350168823,1737666645936,-153.0,0.00022693,2]
[350168824,1737666645945,-153.0,0.00022693,2]
[350168825,1737666645954,-153.0,0.00022693,2]
[350168826,1737666645963,-153.0,0.00022693,2]
[350168827,1737666645972,-153.0,0.00022693,2]
[350168828,1737666645981,-153.0,0.00022693,2]
[350168829,1737666645990,-153.0,0.00022703,2]
[350168830,1737666645999,-153.0,0.00022704,2]
[350168831,1737666646009,-153.0,0.00022704,2]
[350168832,1737666646019,-352.5475766,0.00022797,3]
[350168833,1737666646028,-154.0,0.00022873,2]
[350168834,1737666646037,-154.0,0.00022873,2]
[350168835,1737666646046,-154.0,0.00022873,2]
[350168836,1737666646056,-154.0,0.00022873,2]
[350168837,1737666646065,-154.0,0.00022873,2]
[350168838,1737666646074,-154.0,0.00022873,2]
[350168839,1737666646083,-154.0,0.00022873,2]
[350168840,1737666646092,-154.0,0.00022873,2]
[350168841,1737666646101,-154.0,0.00022873,2]
[350168842,1737666646110,-154.0,0.00022873,2]
[350168843,1737666646119,-154.0,0.00022873,2]
[350168844,1737666646128,-154.0,0.00022873,2]
[350168845,1737666646139,-154.0,0.00022873,2]
[350168846,1737666646148,-154.0,0.00022873,2]
[350168847,1737666646157,-154.0,0.00022873,2]
[350168848,1737666646166,-10220.23167428,0.00022879,2]
[350168849,1737666646175,-2000.0,0.00022884,2]
[350168850,1737666646274,-823.0,0.00022899,2]
[350168851,1737666646285,-352.5475766,0.00022934,3]
[350168852,1737666646295,-156.0,0.00023014,2]
[350168853,1737666646305,-352.5475766,0.00023072,3]
[350168854,1737666646314,-249.0,0.00023081,2]
[350168855,1737666646323,-10220.23167428,0.00023163,2]
[350168856,1737666646333,-264.69513382,0.00023184,2]
[350168857,1737666646342,-151.0,0.000232,8]
[350168858,1737666646352,-153.16,0.000232,31]
[350168859,1737666646361,-153.16,0.000232,31]
[350168860,1737666646370,-153.16,0.000232,31]
[350168861,1737666646379,-153.16,0.000232,31]
[350168862,1737666646390,-153.16,0.000232,31]
[350168863,1737666646400,-153.16,0.000232,31]
[350168864,1737666646409,-153.16,0.000232,31]
[350168865,1737666646418,-16249.99587815,0.000232,3]
[350168866,1737666646427,-160.0,0.000232,3]
[350168867,1737666646437,-173.90632162,0.000232,2]
[350168868,1737666646447,-352.5475766,0.0002321,3]
[350168869,1737666646456,-500.0,0.00023273,2]
[350168870,1737666646465,-500.0,0.00023273,2]
[350168871,1737666646475,-735964.20189144,0.000233,2]
[350168872,1737666646485,-31983.1432204,0.000233,2]
[350168873,1737666646494,-6125.61,0.000233,14]
[350168874,1737666646503,-9769.83,0.000233,2]
[350168875,1737666646512,-154.0,0.00023318,2]
[350168876,1737666646522,-154.0,0.00023318,2]
[350168877,1737666646531,-154.0,0.00023318,2]
[350168878,1737666646540,-6143.0,0.00023328,7]
[350168879,1737666646550,-352.5475766,0.00023348,3]
[350168880,1737666646560,-416.85,0.00023361,2]
[350168881,1737666646569,-15858.46203752,0.00023424,14]
[350168882,1737666646579,-151.0,0.00023439,7]
[350168883,1737666646592,-500.0,0.00023452,2]
[350168884,1737666646602,-352.5475766,0.00023486,3]
[350168885,1737666646611,-619.83926852,0.000235,2]
[350168886,1737666646623,-5000.0,0.00023613,2]
[350168887,1737666646632,-5000.0,0.00023613,2]
[350168888,1737666646644,-5000.0,0.00023613,2]
[350168889,1737666646654,-500.0,0.00023613,2]
[350168890,1737666646663,-5000.0,0.00023613,2]
[350168891,1737666646674,-5000.0,0.00023613,2]
[350168892,1737666646684,-5000.0,0.00023613,2]
[350168893,1737666646694,-5000.0,0.00023613,2]
[350168894,1737666646703,-5000.0,0.00023613,2]
[350168895,1737666646714,-352.5475766,0.00023624,3]
[350168896,1737666646724,-151.0,0.00023719,7]
[350168897,1737666646733,-14111.6,0.00023726,2]
[350168898,1737666646743,-352.5475766,0.00023762,3]
[350168899,1737666646753,-5000.0,0.000238,5]
[350168900,1737666646763,-228.57261557,0.00023821,2]
[350168901,1737666646772,-1000.0,0.00023821,2]
[350168902,1737666646782,-164.640375,0.00023836,2]
[350168903,1737666646792,-264.69513382,0.00023868,2]
[350168904,1737666646802,-500.0,0.00023887,2]
[350168905,1737666646811,-2000.0,0.000239,2]
[350168906,1737666646821,-75595.32337525,0.000239,2]
[350168907,1737666646842,-546.19,0.00021232,3]
[350168908,1737666646852,-12060.86560707,0.000239,2]
[350168909,1737666646863,-205920.00000002,0.000239,2]
[350168910,1737666646875,-626.2159594,0.000239,2]
[350168911,1737666646891,-3642.94027108,0.000239,2]
[350168912,1737666646902,-9817.93547184,0.000239,2]
[350168913,1737666646913,-16672.65065534,0.000239,2]
[350168914,1737666646923,-188.0,0.000239,2]
[350168915,1737666646932,-150.0,0.000239,5]
[350168916,1737666646941,-150.118667,0.000239,2]
[350168917,1737666646952,-1654.83724653,0.000239,2]
[350168918,1737666646962,-352.5475766,0.000239,3]
[350168919,1737666646972,-151.0,0.00023964,7]
[350168920,1737666646981,-151.0,0.00023964,7]
[350168921,1737666646991,-151.0,0.00023964,7]
[350168922,1737666647000,-151.91999,0.00023964,7]
[350168923,1737666647009,-151.0,0.00023964,7]
[350168924,1737666647019,-151.0,0.00023964,7]
[350168925,1737666647027,-239.107166,0.00023964,7]
[350168926,1737666647037,-151.0,0.00023964,7]
[350168927,1737666647046,-151.0,0.00023964,7]
[350168928,1737666647055,-151.0,0.00023964,7]
[350168929,1737666647064,-151.0,0.00023964,7]
[350168930,1737666647073,-151.0,0.00023964,7]
[350168931,1737666647083,-151.0,0.00023964,7]
[350168932,1737666647092,-151.0,0.00023964,7]
[350168933,1737666647101,-253.846855,0.00023964,7]
[350168934,1737666647110,-151.0,0.00023964,7]
[350168935,1737666647119,-151.0,0.00023964,7]
[350168936,1737666647129,-151.0,0.00023964,7]
[350168937,1737666647141,-152.194572,0.00023964,7]
[350168938,1737666647151,-154.213577,0.00023964,7]
[350168939,1737666647162,-151.0,0.00023964,7]
[350168940,1737666647171,-183.799376,0.00023964,7]
[350168941,1737666647181,-183.799376,0.00023964,7]
[350168942,1737666647191,-183.799376,0.00023964,7]
[350168943,1737666647200,-183.799376,0.00023964,7]
[350168944,1737666647210,-183.799376,0.00023964,7]
[350168945,1737666647220,-183.799376,0.00023964,7]
[350168946,1737666647230,-183.799376,0.00023964,7]
[350168947,1737666647240,-183.799376,0.00023964,7]
[350168948,1737666647250,-183.799376,0.00023964,7]
[350168949,1737666647259,-183.799376,0.00023964,7]
[350168950,1737666647270,-183.799376,0.00023964,7]
[350168951,1737666647279,-183.799376,0.00023964,7]
[350168952,1737666647289,-183.799376,0.00023964,7]
[350168953,1737666647299,-183.799376,0.00023964,7]
[350168954,1737666647308,-183.799376,0.00023964,7]
[350168955,1737666647318,-183.799376,0.00023964,7]
[350168956,1737666647327,-183.799376,0.00023964,7]
[350168957,1737666647337,-183.799376,0.00023964,7]
[350168958,1737666647347,-183.799376,0.00023964,7]
[350168959,1737666647357,-183.799368,0.00023964,7]
[350168960,1737666647367,-12736.94749686,0.00023967,5]
[350168961,1737666647378,-3529.79186134,0.00023967,5]
[350168962,1737666647391,-4363.73123422,0.00023967,5]
[350168963,1737666647400,-2427.47690444,0.00023968,61]
[350168964,1737666647422,-152.0,0.00019236,2]
[350168965,1737666647432,-192.0,0.00019669,2]
[350168966,1737666647442,-171.5,0.00023968,61]
[350168967,1737666647453,-78909.5745095,0.00023968,61]
[350168969,1737667487316,269.314061,0.00013973,2]
[350168978,1737667635205,-156.98430157,0.00019077,2]
[350168979,1737667635230,-191.88473923,0.00019078,2]
[350168980,1737667635253,-300.0,0.00019177,2]
[350168981,1737667635275,-500.0,0.00019178,2]
[350168982,1737667635297,-511.12507265,0.00019178,2]
[350168983,1737667635319,-206.02557801,0.00019178,2]
[350168984,1737667635345,-500.0,0.00019178,2]
[350168985,1737667635367,-299.40243876,0.00019178,2]
[350169036,1737667832724,-296.15801447,0.00018372,2]
[350169037,1737667832736,-307.6,0.00018372,2]
[350169038,1737667832748,-346.60001,0.00018372,2]
[350169069,1737667838264,-324.7617401,0.00018372,2]
[350169077,1737667838328,-17163.68209987,0.00018372,2]
[350169079,1737667838339,-35743.88040469,0.00018372,2]
[350169081,1737667838353,-14123.45675222,0.00018372,2]
[350169207,1737667842378,-481.14127633,0.00018372,2]
[350169210,1737667842397,-490.40668275,0.00018372,2]
[350169212,1737667842410,-7181.72085543,0.00018372,2]
[350169215,1737667842421,-13994.6044149,0.00018372,2]
[350169293,1737667843234,-657.21224877,0.00018372,2]
[350169342,1737667846310,-10252.9644824,0.00018372,2]
[350170278,1737667860544,187.049578,0.00017808,2]
[350170344,1737668415032,255.848357,0.00013973,2]
[350170347,1737668951148,-301.027902,0.000172,2]
[350170348,1737668951172,-300.0,0.00017258,2]
[350170349,1737668951195,-11341.62752985,0.00017259,2]
[350170350,1737668951217,-1681.1553974,0.00017359,2]
[350170351,1737668955085,-301.027902,0.00017727,2]
[350170352,1737668955107,-2219.507782,0.0001777,2]
[350170369,1737669032527,-329.81816069,0.00017593,2]
[350170370,1737669032536,-300.0,0.00017769,2]
[350170371,1737669032546,-19875.0989586,0.0001777,2]
[350170372,1737669032556,-721.1078222,0.00017936,2]
[350170373,1737669032566,-1124.1251653,0.00018051,2]
[350170374,1737669032575,-20226.6853481,0.00018372,2]
[350170407,1737669038286,-6419.9056697,0.00018372,2]
[350170408,1737669038410,-257.31269059,0.00018372,2]
[350170409,1737669038424,-1306.75266778,0.00018372,2]
[350170447,1737669040486,-82997.00346469,0.00018372,2]
[350170449,1737669040498,-773.06715305,0.000189,2]
[350170451,1737669040510,-9172.5008956,0.00019,2]
[350170453,1737669040521,-163.88,0.00019173,2]
[350170455,1737669040531,-500.0,0.00019173,2]
[350170458,1737669040541,-500.0,0.00019173,2]
[350170460,1737669040551,-266.65850845,0.00019177,2]
[350170462,1737669040564,-500.0,0.00019177,2]
[350170464,1737669040574,-500.0,0.00019177,2]
[350170466,1737669040586,-328.7300133,0.00019177,2]
[350170469,1737669040596,-500.0,0.00019177,2]
[350170471,1737669040606,-500.0,0.00019177,2]
[350170473,1737669040616,-500.0,0.00019177,2]
[350170475,1737669040627,-466.67368694,0.00019177,2]
[350170477,1737669040637,-500.0,0.00019177,2]
[350170479,1737669040647,-500.0,0.00019177,2]
[350170481,1737669040658,-500.0,0.00019177,2]
[350170483,1737669040668,-500.0,0.00019177,2]
[350170485,1737669040679,-500.0,0.00019177,2]
[350170486,1737669040689,-500.0,0.00019177,2]
[350170487,1737669040699,-500.0,0.00019177,2]
[350170488,1737669040710,-500.0,0.00019177,2]
[350170489,1737669040720,-500.0,0.00019177,2]
[350170490,1737669040730,-500.0,0.00019177,2]
[350170491,1737669040740,-340.59595554,0.00019177,2]
[350170492,1737669040751,-500.0,0.00019177,2]
[350170493,1737669040762,-500.0,0.00019177,2]
[350170494,1737669040772,-500.0,0.00019177,2]
[350170495,1737669040783,-500.0,0.00019177,2]
[350170496,1737669040793,-500.0,0.00019177,2]
[350170497,1737669040804,-500.0,0.00019177,2]
[350170498,1737669040815,-500.0,0.00019177,2]
[350170499,1737669040826,-500.0,0.00019177,2]
[350170500,1737669040836,-500.0,0.00019177,2]
[350170501,1737669040846,-500.0,0.00019177,2]
[350170503,1737669040856,-500.0,0.00019177,2]
[350170505,1737669040867,-500.0,0.00019177,2]
[350170508,1737669040879,-500.0,0.00019177,2]
[350170510,1737669040889,-500.0,0.00019177,2]
[350170512,1737669040900,-530.68591623,0.00019177,2]
[350170514,1737669040910,-500.0,0.00019177,2]
[350170516,1737669040920,-500.0,0.00019177,2]
[350170518,1737669040931,-500.0,0.00019177,2]
[350170520,1737669040942,-500.0,0.00019177,2]
[350170523,1737669040953,-500.0,0.00019177,2]
[350170525,1737669040963,-500.0,0.00019177,2]
[350170527,1737669040973,-500.0,0.00019177,2]
[350170529,1737669040985,-500.0,0.00019177,2]
[350170531,1737669040995,-500.0,0.00019177,2]
[350170534,1737669041006,-500.0,0.00019177,2]
[350170536,1737669041018,-500.0,0.00019177,2]
[350170538,1737669041031,-500.0,0.00019177,2]
[350170540,1737669041042,-621.23616905,0.00019177,2]
[350170542,1737669041052,-500.0,0.00019177,2]
[350170544,1737669041063,-500.0,0.00019177,2]
[350170547,1737669041075,-500.0,0.00019177,2]
[350170549,1737669041086,-500.0,0.00019177,2]
[350170565,1737669041226,-500.0,0.00019177,2]
[350170568,1737669041241,-500.0,0.00019177,2]
[350170570,1737669041251,-500.0,0.00019177,2]
[350170572,1737669041261,-500.0,0.00019177,2]
[350170574,1737669041271,-500.0,0.00019177,2]
[350170576,1737669041281,-500.0,0.00019177,2]
[350170578,1737669041289,-500.0,0.00019177,2]
[350170580,1737669041298,-500.0,0.00019177,2]
[350170582,1737669041308,-500.0,0.00019177,2]
[350170583,1737669041321,-500.0,0.00019177,2]
[350170586,1737669041331,-500.0,0.00019177,2]
[350170588,1737669041340,-500.0,0.00019177,2]
[350170590,1737669041349,-500.0,0.00019177,2]
[350170592,1737669041360,-234.84613904,0.00019177,2]
[350170594,1737669041370,-500.0,0.00019177,2]
[350170596,1737669041379,-500.0,0.00019177,2]
[350170598,1737669041388,-271.98050091,0.00019177,2]
[350170600,1737669041401,-9252.55736568,0.00019177,5]
[350170602,1737669041410,-3610.56744597,0.00019178,5]
[350170950,1737669379466,271.01671,0.00013973,2]
[350170965,1737670037117,-277.9391654,0.00016663,2]
[350170966,1737670037138,-150.32871222,0.000167,2]
[350170967,1737670037160,-277.9391654,0.00016831,2]
[350170968,1737670037181,-300.0,0.00017722,2]
[350170969,1737670037202,-6425.49663245,0.00017723,2]
[350171018,1737670232624,-4689.01860855,0.00017546,2]
[350171020,1737670232634,-188.93296488,0.0001767,2]
[350171022,1737670232646,-112.09493772,0.0001767,2]
[350171024,1737670232657,-4689.01860855,0.00017723,2]
[350171026,1737670232667,-188.712388,0.00017808,2]
[350171028,1737670232681,-300.0,0.00017902,2]
[350171030,1737670232691,-250.0,0.00017904,2]
[350171032,1737670232700,-785.4134831,0.00018058,2]
[350171034,1737670232709,-3159.87953097,0.00018781,2]
[350171037,1737670232726,-259.953,0.00018781,2]
[350171048,1737670232820,-825.74485283,0.00018781,2]
[350171091,1737670235465,4689.01860855,0.00017371,2]
[350171342,1737670242607,-309.408,0.00018781,2]
[350171346,1737670242636,-8610.22650329,0.00018781,2]
[350171348,1737670242647,-1315.61513633,0.000189,2]
[350171350,1737670242657,-2340.28400916,0.00019,2]
[350171352,1737670242667,-302.9394212,0.00019,2]
[350171354,1737670242677,-303.00000303,0.00019,2]
[350171356,1737670242692,-172.75773952,0.0001902,2]
[350171358,1737670242701,-172.75773951,0.00019039,2]
[350171360,1737670242711,-172.75773951,0.00019059,2]
[350171362,1737670242720,-500.0,0.00019068,2]
[350171364,1737670242731,-172.75773951,0.00019078,2]
[350171366,1737670242740,-35807.92100649,0.00019078,2]
[350171368,1737670242750,-1735.9650156,0.00019127,2]
[350171371,1737670242761,-494.71999788,0.00019127,2]
[350171469,1737670243668,-59.75355576,0.00019127,2]
[350171471,1737670243681,-10874.77331785,0.00019127,2]
[350171473,1737670243693,-500.0,0.00019175,2]
[350171475,1737670243702,-384.14,0.00019175,2]
[350171477,1737670243712,-500.0,0.00019175,2]
[350171479,1737670243722,-500.0,0.00019175,2]
[350171481,1737670243732,-500.0,0.00019175,2]
[350171483,1737670243742,-500.0,0.00019175,2]
[350171485,1737670243751,-500.0,0.00019175,2]
[350171487,1737670243763,-500.0,0.00019175,2]
[350171490,1737670243772,-500.0,0.00019175,2]
[350171491,1737670243782,-472.70395967,0.00019175,2]
[350171494,1737670243791,-500.0,0.00019175,2]
[350171495,1737670243801,-500.0,0.00019175,2]
[350171498,1737670243811,-500.0,0.00019175,2]
[350171499,1737670243820,-500.0,0.00019175,2]
[350171501,1737670243829,-500.0,0.00019175,2]
[350171504,1737670243840,-514.70299528,0.00019175,2]
[350171506,1737670243849,-500.0,0.00019175,2]
[350171508,1737670243859,-500.0,0.00019175,2]
[350171510,1737670243869,-255.05686425,0.00019175,2]
[350171512,1737670243879,-500.0,0.00019175,2]
[350171514,1737670243888,-500.0,0.00019175,2]
[350171516,1737670243898,-500.0,0.00019175,2]
[350171518,1737670243907,-500.0,0.00019175,2]
[350171520,1737670243917,-500.0,0.00019175,2]
[350171522,1737670243927,-505.30850027,0.00019175,2]
[350171524,1737670243937,-500.0,0.00019175,2]
[350171526,1737670243946,-500.0,0.00019175,2]
[350171528,1737670243956,-500.0,0.00019175,2]
[350171530,1737670243966,-393.6316229,0.00019175,2]
[350171532,1737670243975,-500.0,0.00019175,2]
[350171534,1737670243985,-500.0,0.00019175,2]
[350171537,1737670243995,-500.0,0.00019175,2]
[350171540,1737670244004,-500.0,0.00019175,2]
[350171543,1737670244013,-559.83619116,0.00019175,2]
[350171546,1737670244022,-500.0,0.00019175,2]
[350171548,1737670244031,-500.0,0.00019175,2]
[350171550,1737670244041,-500.0,0.00019175,2]
[350171552,1737670244051,-500.0,0.00019177,2]
[350171554,1737670244060,-164.39229733,0.00019177,2]
[350171556,1737670244069,-390.38635063,0.00019177,2]
[350171558,1737670244079,-188.59733893,0.00019177,2]
[350171560,1737670244088,-545.13450039,0.00019177,2]
[350171562,1737670244097,-29555.01503808,0.00019178,5]
[350171564,1737670244106,-32949.18210614,0.00019178,5]
[350172024,1737670249788,181.50933319,0.00024,120]
[350172438,1737670544473,288.420109,0.00013973,2]
[350172450,1737671251121,-234.448506,0.00016268,2]
[350172451,1737671251144,-1299.96065436,0.00016332,2]
[350172452,1737671251168,-234.448506,0.00016432,2]
[350172453,1737671251189,-194.3470687,0.00017349,2]
[350172454,1737671251213,-300.0,0.00017747,2]
[350172455,1737671251235,-13948.74493131,0.00017748,2]
[350172463,1737671424776,273.999103,0.00013973,2]
[350172502,1737671432743,-284.45957987,0.00017394,2]
[350172503,1737671432753,-1670.45307643,0.0001757,2]
[350172513,1737671432903,-4205.72677569,0.00017748,2]
[350172514,1737671432922,-234.448506,0.00017808,2]
[350172515,1737671432933,-301.263935,0.00017871,2]
[350172516,1737671432943,-162.1301093,0.00017972,2]
[350172517,1737671432953,-502.359,0.0001822,2]
[350172518,1737671432963,-982.52265787,0.000189,2]
[350172519,1737671432973,-300.0,0.00018989,2]
[350172520,1737671432983,-2178.34301086,0.0001899,2]
[350172521,1737671432992,-303.03030303,0.00019,2]
[350172522,1737671433002,-225.31149674,0.00019,2]
[350172523,1737671433011,-500.0,0.00019068,2]
[350172524,1737671433021,-18143.57656326,0.00019078,2]
[350172525,1737671433030,-152.0,0.00019153,2]
[350172526,1737671433040,-500.0,0.00019173,2]
[350172527,1737671433050,-500.0,0.00019173,2]
[350172528,1737671433060,-163.89,0.00019173,2]
[350172529,1737671433073,-943.12669046,0.00019173,2]
[350172530,1737671433083,-301.39413098,0.00019176,2]
[350172531,1737671433094,-500.0,0.00019177,2]
[350172532,1737671433104,-500.0,0.00019177,2]
[350172533,1737671433114,-500.0,0.00019177,2]
[350172534,1737671433124,-500.0,0.00019177,2]
[350172535,1737671433133,-500.0,0.00019177,2]
[350172537,1737671433142,-500.0,0.00019177,2]
[350172539,1737671433152,-500.0,0.00019177,2]
[350172541,1737671433162,-500.0,0.00019177,2]
[350172543,1737671433172,-607.89974782,0.00019177,2]
[350172545,1737671433181,-500.0,0.00019177,2]
[350172547,1737671433190,-500.0,0.00019177,2]
[350172549,1737671433200,-370.70265833,0.00019177,2]
[350172551,1737671433210,-500.0,0.00019177,2]
[350172553,1737671433220,-500.0,0.00019177,2]
[350172555,1737671433230,-500.0,0.00019177,2]
[350172557,1737671433240,-500.0,0.00019177,2]
[350172559,1737671433250,-500.0,0.00019177,2]
[350172561,1737671433260,-500.0,0.00019177,2]
[350172563,1737671433269,-500.0,0.00019177,2]
[350172565,1737671433279,-500.0,0.00019177,2]
[350172567,1737671433288,-500.0,0.00019177,2]
[350172569,1737671433298,-500.0,0.00019177,2]
[350172571,1737671433308,-500.0,0.00019177,2]
[350172573,1737671433321,-500.0,0.00019177,2]
[350172575,1737671433331,-500.0,0.00019177,2]
[350172577,1737671433341,-500.0,0.00019177,2]
[350172579,1737671433351,-500.0,0.00019177,2]
[350172581,1737671433362,-500.0,0.00019177,2]
[350172583,1737671433372,-500.0,0.00019177,2]
[350172585,1737671433381,-500.0,0.00019177,2]
[350172587,1737671433391,-500.0,0.00019177,2]
[350172589,1737671433402,-500.0,0.00019177,2]
[350172591,1737671433412,-500.0,0.00019177,2]
[350172593,1737671433423,-173.69718856,0.00019177,2]
[350172595,1737671433433,-500.0,0.00019177,2]
[350172597,1737671433443,-500.0,0.00019177,2]
[350172599,1737671433453,-500.0,0.00019177,2]
[350172601,1737671433463,-500.0,0.00019177,2]
[350172603,1737671433473,-500.0,0.00019177,2]
[350172605,1737671433483,-500.0,0.00019177,2]
[350172607,1737671433493,-500.0,0.00019177,2]
[350172609,1737671433503,-500.0,0.00019177,2]
[350172611,1737671433513,-500.0,0.00019177,2]
[350172613,1737671433523,-500.0,0.00019177,2]
[350172615,1737671433534,-500.0,0.00019177,2]
[350172617,1737671433544,-370.0,0.00019177,2]
[350172619,1737671433554,-500.0,0.00019177,2]
[350172622,1737671433566,-500.0,0.00019177,2]
[350172623,1737671433576,-500.0,0.00019177,2]
[350172625,1737671433586,-500.0,0.00019177,2]
[350172627,1737671433595,-500.0,0.00019177,2]
[350172629,1737671433605,-500.0,0.00019177,2]
[350172631,1737671433621,-500.0,0.00019177,2]
[350172633,1737671433631,-555.32685538,0.00019177,2]
[350172635,1737671433641,-316.56026771,0.00019177,2]
[350172638,1737671433651,-500.0,0.00019177,2]
[350172640,1737671433661,-500.0,0.00019177,2]
[350172642,1737671433671,-500.0,0.00019177,2]
[350172643,1737671433681,-500.0,0.00019177,2]
[350172646,1737671433691,-500.0,0.00019177,2]
[350172648,1737671433701,-500.0,0.00019177,2]
[350172650,1737671433711,-500.0,0.00019177,2]
[350172652,1737671433721,-500.0,0.00019177,2]
[350172654,1737671433731,-500.0,0.00019177,2]
[350172655,1737671433741,-500.0,0.00019177,2]
[350172656,1737671433751,-500.0,0.00019177,2]
[350172657,1737671433761,-500.0,0.00019177,2]
[350172658,1737671433770,-500.0,0.00019177,2]
[350172659,1737671433780,-500.0,0.00019177,2]
[350172660,1737671433790,-500.0,0.00019177,2]
[350172661,1737671433800,-500.0,0.00019177,2]
[350172662,1737671433809,-500.0,0.00019177,2]
[350172663,1737671433821,-500.0,0.00019177,2]
[350172664,1737671433831,-500.0,0.00019177,2]
[350172665,1737671433841,-500.0,0.00019177,2]
[350172666,1737671433852,-500.0,0.00019177,2]
[350172667,1737671433862,-500.0,0.00019177,2]
[350172668,1737671433872,-500.0,0.00019177,2]
[350172669,1737671433882,-500.0,0.00019177,2]
[350172670,1737671433892,-500.0,0.00019177,2]
[350172671,1737671433902,-500.0,0.00019177,2]
[350172672,1737671433912,-500.0,0.00019177,2]
[350172673,1737671433922,-500.0,0.00019177,2]
[350172674,1737671433932,-477.93417569,0.00019177,2]
[350172675,1737671433942,-500.0,0.00019177,2]
[350172676,1737671433952,-500.0,0.00019177,2]
[350172677,1737671433962,-500.0,0.00019177,2]
[350172678,1737671433972,-500.0,0.00019177,2]
[350172679,1737671433982,-500.0,0.00019177,2]
[350172680,1737671433992,-500.0,0.00019177,2]
[350172681,1737671434002,-500.0,0.00019177,2]
[350172682,1737671434013,-500.0,0.00019177,2]
[350172683,1737671434023,-500.0,0.00019177,2]
[350172684,1737671434033,-500.0,0.00019177,2]
[350172685,1737671434043,-500.0,0.00019177,2]
[350172686,1737671434054,-500.0,0.00019177,2]
[350172687,1737671434065,-500.0,0.00019177,2]
[350172688,1737671434078,-500.0,0.00019177,2]
[350172689,1737671434088,-500.0,0.00019177,2]